[Event "Early-Titled-Tuesday-Blitz-October-17-2023"]
[Site "Chess.com"]
[Date "2023.10.17"]
[Round "11"]
[White "Byniolus"]
[Black "bescmelasti"]
[Result "1-0"]
[WhiteElo "2788"]
[BlackElo "2625"]
[TimeControl "180+1"]
[EndTime "10:11:21 PDT"]
[Termination "Byniolus won on time"]

1. d4 {[%clk 0:03:00.9]} 1... Nf6 {[%clk 0:02:59.7]} 2. Nf3 {[%clk 0:03:01.4]}
2... d5 {[%clk 0:02:56.6]} 3. Bf4 {[%clk 0:03:01.3]} 3... e6 {[%clk 0:02:56.6]}
4. e3 {[%clk 0:03:01.7]} 4... Bd6 {[%clk 0:02:56.4]} 5. Bg3 {[%clk 0:03:02.2]}
5... O-O {[%clk 0:02:54.8]} 6. Nbd2 {[%clk 0:03:02.7]} 6... c5 {[%clk
0:02:48.6]} 7. c3 {[%clk 0:03:02.6]} 7... Qc7 {[%clk 0:02:48]} 8. Be2 {[%clk
0:03:01.8]} 8... Nbd7 {[%clk 0:02:48.2]} 9. c4 {[%clk 0:03:02.4]} 9... b6 {[%clk
0:02:35.8]} 10. Rc1 {[%clk 0:03:01.6]} 10... Bb7 {[%clk 0:02:35.2]} 11. dxc5
{[%clk 0:03:01.5]} 11... bxc5 {[%clk 0:02:19.6]} 12. Qa4 {[%clk 0:02:57.4]}
12... Bxg3 {[%clk 0:02:18.6]} 13. hxg3 {[%clk 0:02:58.3]} 13... Qd6 {[%clk
0:02:12.3]} 14. Qa3 {[%clk 0:02:49.6]} 14... h6 {[%clk 0:02:11.1]} 15. O-O
{[%clk 0:02:48.7]} 15... a5 {[%clk 0:02:01.6]} 16. Rfd1 {[%clk 0:02:44.3]} 16...
Rfc8 {[%clk 0:02:01.2]} 17. cxd5 {[%clk 0:02:34.8]} 17... exd5 {[%clk
0:02:01.3]} 18. Bb5 {[%clk 0:02:33.3]} 18... Qb6 {[%clk 0:01:51.8]} 19. Qa4
{[%clk 0:02:25.6]} 19... Bc6 {[%clk 0:01:47.8]} 20. Bxc6 {[%clk 0:02:24.4]}
20... Rxc6 {[%clk 0:01:45.2]} 21. b3 {[%clk 0:01:49.7]} 21... Rcc8 {[%clk
0:01:41.3]} 22. Nb1 {[%clk 0:01:44.2]} 22... Qb4 {[%clk 0:01:38.3]} 23. Nc3
{[%clk 0:01:42.4]} 23... Nb6 {[%clk 0:01:30.4]} 24. Qb5 {[%clk 0:01:41.1]} 24...
Ne4 {[%clk 0:01:18.2]} 25. Qd3 {[%clk 0:01:25]} 25... Nxc3 {[%clk 0:01:01]} 26.
Qxc3 {[%clk 0:01:25.9]} 26... Qxc3 {[%clk 0:00:56.8]} 27. Rxc3 {[%clk
0:01:25.9]} 27... a4 {[%clk 0:00:57.3]} 28. Rdc1 {[%clk 0:01:19.4]} 28... axb3
{[%clk 0:00:57.6]} 29. axb3 {[%clk 0:01:20.3]} 29... c4 {[%clk 0:00:53.9]} 30.
Ne5 {[%clk 0:01:20]} 30... Ra3 {[%clk 0:00:49.8]} 31. bxc4 {[%clk 0:01:12.5]}
31... Rxc3 {[%clk 0:00:50.7]} 32. Rxc3 {[%clk 0:01:13.1]} 32... dxc4 {[%clk
0:00:49.4]} 33. Kf1 {[%clk 0:01:09.6]} 33... f6 {[%clk 0:00:49.5]} 34. Ng6
{[%clk 0:01:08.1]} 34... Kf7 {[%clk 0:00:50.4]} 35. Nf4 {[%clk 0:01:07.7]} 35...
g5 {[%clk 0:00:48.8]} 36. Ne2 {[%clk 0:01:07.9]} 36... Nd5 {[%clk 0:00:48.1]}
37. Rc1 {[%clk 0:01:05.8]} 37... c3 {[%clk 0:00:48.6]} 38. e4 {[%clk 0:01:05]}
38... Nb4 {[%clk 0:00:46.3]} 39. Rxc3 {[%clk 0:01:05.3]} 39... Rd8 {[%clk
0:00:42.8]} 40. f3 {[%clk 0:01:03.2]} 40... Rd1+ {[%clk 0:00:35.4]} 41. Kf2
{[%clk 0:01:03.7]} 41... Kg6 {[%clk 0:00:32.7]} 42. g4 {[%clk 0:01:00.3]} 42...
Nd3+ {[%clk 0:00:32.3]} 43. Ke3 {[%clk 0:01:00.7]} 43... Ne1 {[%clk 0:00:32.7]}
44. g3 {[%clk 0:01:00.6]} 44... Ng2+ {[%clk 0:00:29.2]} 45. Kf2 {[%clk
0:01:00.4]} 45... Ne1 {[%clk 0:00:30.1]} 46. f4 {[%clk 0:00:56.3]} 46... h5
{[%clk 0:00:22.9]} 47. f5+ {[%clk 0:00:28]} 47... Kh6 {[%clk 0:00:22.7]} 48. Rc6
{[%clk 0:00:28.8]} 48... Nd3+ {[%clk 0:00:21.7]} 49. Ke3 {[%clk 0:00:27]} 49...
Kg7 {[%clk 0:00:17.9]} 50. Rd6 {[%clk 0:00:21.6]} 50... Nb2 {[%clk 0:00:12.1]}
51. Rxd1 {[%clk 0:00:22.5]} 51... Nxd1+ {[%clk 0:00:13]} 52. Kd2 {[%clk
0:00:14]} 52... Nf2 {[%clk 0:00:13.4]} 53. gxh5 {[%clk 0:00:14.6]} 53... Nxe4+
{[%clk 0:00:13.4]} 54. Ke3 {[%clk 0:00:14.1]} 54... Nd6 {[%clk 0:00:11.2]} 55.
g4 {[%clk 0:00:12.5]} 55... Nf7 {[%clk 0:00:10.1]} 56. Kf3 {[%clk 0:00:07.1]}
56... Ne5+ {[%clk 0:00:11]} 57. Kg3 {[%clk 0:00:08]} 57... Kf7 {[%clk 0:00:09]}
58. Nd4 {[%clk 0:00:08.6]} 58... Kg7 {[%clk 0:00:09.7]} 59. Nf3 {[%clk
0:00:08.8]} 59... Nd3 {[%clk 0:00:10.1]} 60. Kg2 {[%clk 0:00:08.4]} 60... Nf4+
{[%clk 0:00:10.3]} 61. Kf2 {[%clk 0:00:08.7]} 61... Nd3+ {[%clk 0:00:11.2]} 62.
Ke3 {[%clk 0:00:09.3]} 62... Nf4 {[%clk 0:00:11.1]} 63. Ke4 {[%clk 0:00:09.2]}
63... Nh3 {[%clk 0:00:11]} 64. Nh2 {[%clk 0:00:07.2]} 64... Nf2+ {[%clk
0:00:11.2]} 65. Ke3 {[%clk 0:00:07.2]} 65... Nh3 {[%clk 0:00:12.1]} 66. Kf3
{[%clk 0:00:06.9]} 66... Nf4 {[%clk 0:00:12.3]} 67. Nf1 {[%clk 0:00:07.6]} 67...
Kh6 {[%clk 0:00:12]} 68. Ne3 {[%clk 0:00:07.6]} 68... Nd3 {[%clk 0:00:11.5]} 69.
Ke4 {[%clk 0:00:08.5]} 69... Ne5 {[%clk 0:00:12.4]} 70. Kd5 {[%clk 0:00:07.5]}
70... Kg7 {[%clk 0:00:10.5]} 71. Ke6 {[%clk 0:00:08.1]} 71... Nd3 {[%clk
0:00:06.7]} 72. Ke7 {[%clk 0:00:03.8]} 72... Ne5 {[%clk 0:00:06]} 73. Kd6 {[%clk
0:00:03.4]} 73... Nd3 {[%clk 0:00:04.4]} 74. Ke6 {[%clk 0:00:03.7]} 74... Ne5
{[%clk 0:00:04.9]} 75. Ke7 {[%clk 0:00:03.3]} 75... Nd3 {[%clk 0:00:05.1]} 76.
Nd5 {[%clk 0:00:02.7]} 1-0

[Event "Early-Titled-Tuesday-Blitz-October-17-2023"]
[Site "Chess.com"]
[Date "2023.10.17"]
[Round "11"]
[White "Aswathchess"]
[Black "krzyzan94"]
[Result "0-1"]
[WhiteElo "2661"]
[BlackElo "2791"]
[TimeControl "180+1"]
[EndTime "10:11:34 PDT"]
[Termination "krzyzan94 won on time"]

1. d4 {[%clk 0:03:00.9]} 1... Nf6 {[%clk 0:02:59.1]} 2. c4 {[%clk 0:02:59]} 2...
e6 {[%clk 0:02:59.5]} 3. g3 {[%clk 0:02:59]} 3... c5 {[%clk 0:02:58.2]} 4. d5
{[%clk 0:02:58.9]} 4... exd5 {[%clk 0:02:58.8]} 5. cxd5 {[%clk 0:02:59.8]} 5...
d6 {[%clk 0:02:59.5]} 6. Bg2 {[%clk 0:03:00.4]} 6... g6 {[%clk 0:03:00.2]} 7.
Nc3 {[%clk 0:03:00.1]} 7... Bg7 {[%clk 0:03:00.6]} 8. Nf3 {[%clk 0:03:00.8]}
8... O-O {[%clk 0:03:00.9]} 9. O-O {[%clk 0:03:01.5]} 9... a6 {[%clk 0:03:00.1]}
10. a4 {[%clk 0:03:01.4]} 10... Re8 {[%clk 0:02:52.9]} 11. Bf4 {[%clk
0:03:01.1]} 11... Ne4 {[%clk 0:02:38.4]} 12. Nxe4 {[%clk 0:02:59.2]} 12... Rxe4
{[%clk 0:02:39.3]} 13. Nd2 {[%clk 0:02:59.2]} 13... Rxf4 {[%clk 0:02:26.3]} 14.
gxf4 {[%clk 0:02:58.8]} 14... Bxb2 {[%clk 0:02:27]} 15. Rb1 {[%clk 0:02:58.9]}
15... Bg7 {[%clk 0:02:26.6]} 16. Nc4 {[%clk 0:02:57.5]} 16... Ra7 {[%clk
0:02:11]} 17. Rb6 {[%clk 0:02:47.9]} 17... Bf8 {[%clk 0:02:10.2]} 18. a5 {[%clk
0:02:46.7]} 18... Nd7 {[%clk 0:02:05.8]} 19. Rb3 {[%clk 0:02:44.7]} 19... Ra8
{[%clk 0:01:56.8]} 20. e3 {[%clk 0:02:44.1]} 20... Nf6 {[%clk 0:01:47.6]} 21.
Nb6 {[%clk 0:02:43]} 21... Rb8 {[%clk 0:01:48.2]} 22. Nxc8 {[%clk 0:02:25]}
22... Qxc8 {[%clk 0:01:44.9]} 23. Qd2 {[%clk 0:02:25.1]} 23... Qc7 {[%clk
0:01:34.8]} 24. Rfb1 {[%clk 0:02:24.4]} 24... Nd7 {[%clk 0:01:31.6]} 25. Qb2
{[%clk 0:02:15.5]} 25... Qxa5 {[%clk 0:01:28.2]} 26. Rxb7 {[%clk 0:02:15.5]}
26... Rxb7 {[%clk 0:01:27.2]} 27. Qxb7 {[%clk 0:02:16.4]} 27... Nf6 {[%clk
0:01:27.5]} 28. Qc8 {[%clk 0:02:06.3]} 28... Kg7 {[%clk 0:01:26.1]} 29. Bf3
{[%clk 0:01:49.4]} 29... Qa2 {[%clk 0:00:55.6]} 30. Rb8 {[%clk 0:01:45.9]} 30...
Be7 {[%clk 0:00:54.6]} 31. Qc7 {[%clk 0:01:35.1]} 31... Nxd5 {[%clk 0:00:50.1]}
32. Qb7 {[%clk 0:01:25.3]} 32... Bh4 {[%clk 0:00:41.7]} 33. Qb2+ {[%clk
0:01:11.7]} 33... Qxb2 {[%clk 0:00:41.9]} 34. Rxb2 {[%clk 0:01:12.6]} 34... Nb4
{[%clk 0:00:41.7]} 35. Rb3 {[%clk 0:01:01.6]} 35... a5 {[%clk 0:00:41.5]} 36.
Ra3 {[%clk 0:01:01.8]} 36... Bd8 {[%clk 0:00:42.2]} 37. Kf1 {[%clk 0:01:01.1]}
37... Kf6 {[%clk 0:00:41.1]} 38. Ke1 {[%clk 0:01:01.5]} 38... d5 {[%clk
0:00:40.6]} 39. Kd2 {[%clk 0:01:01.2]} 39... Ke6 {[%clk 0:00:41.2]} 40. Be2
{[%clk 0:00:59.3]} 40... Kd6 {[%clk 0:00:40.7]} 41. Bd1 {[%clk 0:00:57]} 41...
c4 {[%clk 0:00:40.9]} 42. f3 {[%clk 0:00:53.4]} 42... Kc5 {[%clk 0:00:40.8]} 43.
Ra1 {[%clk 0:00:49.8]} 43... Bc7 {[%clk 0:00:23]} 44. Be2 {[%clk 0:00:44]} 44...
d4 {[%clk 0:00:20.3]} 45. Rc1 {[%clk 0:00:43]} 45... c3+ {[%clk 0:00:19.4]} 46.
Ke1 {[%clk 0:00:42.8]} 46... a4 {[%clk 0:00:16.6]} 47. Kf1 {[%clk 0:00:36.1]}
47... a3 {[%clk 0:00:15.7]} 48. exd4+ {[%clk 0:00:33.8]} 48... Kxd4 {[%clk
0:00:16.1]} 49. Rd1+ {[%clk 0:00:34.3]} 49... Kc5 {[%clk 0:00:15.6]} 50. Ra1
{[%clk 0:00:30.8]} 50... a2 {[%clk 0:00:14.8]} 51. Bd1 {[%clk 0:00:29.7]} 51...
c2 {[%clk 0:00:11.1]} 52. Bxc2 {[%clk 0:00:29.4]} 52... Nxc2 {[%clk 0:00:11.8]}
53. Rxa2 {[%clk 0:00:27.2]} 53... Ne3+ {[%clk 0:00:11.8]} 54. Ke2 {[%clk
0:00:26]} 54... Bxf4 {[%clk 0:00:12.6]} 55. Ra7 {[%clk 0:00:26.3]} 55... Nf5
{[%clk 0:00:09.5]} 56. Rxf7 {[%clk 0:00:26.8]} 56... h5 {[%clk 0:00:07.3]} 57.
Rf6 {[%clk 0:00:26.8]} 57... Nd4+ {[%clk 0:00:05.4]} 58. Kd3 {[%clk 0:00:26.1]}
58... Bxh2 {[%clk 0:00:05.5]} 59. Ke4 {[%clk 0:00:22.1]} 59... g5 {[%clk
0:00:04.9]} 60. Rh6 {[%clk 0:00:19.8]} 60... h4 {[%clk 0:00:05.2]} 61. Rh7
{[%clk 0:00:18.1]} 61... Nc6 {[%clk 0:00:03.9]} 62. Kf5 {[%clk 0:00:18.1]} 62...
Bf4 {[%clk 0:00:04.4]} 63. Rf7 {[%clk 0:00:13.4]} 63... Kd5 {[%clk 0:00:04.6]}
64. Rd7+ {[%clk 0:00:13.3]} 64... Kc5 {[%clk 0:00:05.1]} 65. Rd1 {[%clk
0:00:12.5]} 65... Nd4+ {[%clk 0:00:05]} 66. Kg4 {[%clk 0:00:12.3]} 66... Nc2
{[%clk 0:00:05.1]} 67. Rh1 {[%clk 0:00:11.6]} 67... Ne3+ {[%clk 0:00:05.4]} 68.
Kh5 {[%clk 0:00:12.1]} 68... Kd4 {[%clk 0:00:05.2]} 69. Ra1 {[%clk 0:00:09.7]}
69... Kd3 {[%clk 0:00:04.7]} 70. Ra5 {[%clk 0:00:09.4]} 70... Ke2 {[%clk
0:00:04.8]} 71. Ra2+ {[%clk 0:00:08.1]} 71... Kxf3 {[%clk 0:00:04.8]} 72. Ra3
{[%clk 0:00:05.6]} 72... h3 {[%clk 0:00:05.3]} 73. Ra1 {[%clk 0:00:05.7]} 73...
h2 {[%clk 0:00:05.6]} 74. Rb1 {[%clk 0:00:06.4]} 74... Kg2 {[%clk 0:00:04.8]}
0-1

[Event "Early-Titled-Tuesday-Blitz-October-17-2023"]
[Site "Chess.com"]
[Date "2023.10.17"]
[Round "11"]
[White "noblerone"]
[Black "Kostukov_Alex"]
[Result "1-0"]
[WhiteElo "2512"]
[BlackElo "2381"]
[TimeControl "180+1"]
[EndTime "10:11:34 PDT"]
[Termination "noblerone won on time"]

1. d4 {[%clk 0:02:49.2]} 1... g6 {[%clk 0:02:59.4]} 2. Nf3 {[%clk 0:02:49.5]}
2... Bg7 {[%clk 0:03:00]} 3. Bg5 {[%clk 0:02:50.1]} 3... d6 {[%clk 0:02:57.1]}
4. c3 {[%clk 0:02:50.2]} 4... h6 {[%clk 0:02:57.4]} 5. Bh4 {[%clk 0:02:49.3]}
5... g5 {[%clk 0:02:58]} 6. Bg3 {[%clk 0:02:49.7]} 6... f5 {[%clk 0:02:58.9]} 7.
e3 {[%clk 0:02:50.1]} 7... Nf6 {[%clk 0:02:59.2]} 8. Bc4 {[%clk 0:02:50]} 8...
e6 {[%clk 0:02:59.2]} 9. a4 {[%clk 0:02:49.2]} 9... Qe7 {[%clk 0:02:59.7]} 10.
h3 {[%clk 0:02:46.5]} 10... O-O {[%clk 0:02:52]} 11. Nbd2 {[%clk 0:02:45.7]}
11... Nc6 {[%clk 0:02:47.5]} 12. Qc2 {[%clk 0:02:44.4]} 12... Kh8 {[%clk
0:02:46.3]} 13. Ba2 {[%clk 0:02:34]} 13... e5 {[%clk 0:02:43.7]} 14. dxe5 {[%clk
0:02:14.9]} 14... dxe5 {[%clk 0:02:44.6]} 15. e4 {[%clk 0:02:10.4]} 15... f4
{[%clk 0:02:27.7]} 16. Bh2 {[%clk 0:02:10.4]} 16... Be6 {[%clk 0:02:26.2]} 17.
Bxe6 {[%clk 0:02:08.4]} 17... Qxe6 {[%clk 0:02:27.1]} 18. a5 {[%clk 0:02:01]}
18... Rad8 {[%clk 0:02:22.7]} 19. O-O {[%clk 0:01:52.5]} 19... Nd7 {[%clk
0:02:10.6]} 20. Rfd1 {[%clk 0:01:39.4]} 20... b6 {[%clk 0:01:58.5]} 21. b4
{[%clk 0:01:37]} 21... Nf6 {[%clk 0:01:50.7]} 22. axb6 {[%clk 0:01:27.2]} 22...
axb6 {[%clk 0:01:50.2]} 23. Re1 {[%clk 0:01:16.3]} 23... Rd7 {[%clk 0:01:49.8]}
24. Qb3 {[%clk 0:01:11.4]} 24... Qe7 {[%clk 0:01:40.2]} 25. Qa4 {[%clk
0:01:04.2]} 25... Qe6 {[%clk 0:01:35.7]} 26. Qb3 {[%clk 0:01:02.9]} 26... Qxb3
{[%clk 0:01:31.1]} 27. Nxb3 {[%clk 0:01:03]} 27... g4 {[%clk 0:01:24.9]} 28.
hxg4 {[%clk 0:01:01.6]} 28... Nxg4 {[%clk 0:01:25]} 29. Nh4 {[%clk 0:01:01]}
29... Rfd8 {[%clk 0:01:21]} 30. Nf5 {[%clk 0:00:53.3]} 30... Ne7 {[%clk
0:01:17.3]} 31. Nh4 {[%clk 0:00:46.9]} 31... Kh7 {[%clk 0:01:14.7]} 32. Rac1
{[%clk 0:00:36.1]} 32... Bf6 {[%clk 0:01:14.2]} 33. Nf3 {[%clk 0:00:34]} 33...
Rd3 {[%clk 0:01:13.1]} 34. Kf1 {[%clk 0:00:29.2]} 34... Rg8 {[%clk 0:01:05]} 35.
Bg1 {[%clk 0:00:27.1]} 35... Rgd8 {[%clk 0:01:02]} 36. Ke2 {[%clk 0:00:24.8]}
36... R3d7 {[%clk 0:00:59.6]} 37. Red1 {[%clk 0:00:24.2]} 37... Rxd1 {[%clk
0:00:58]} 38. Rxd1 {[%clk 0:00:25.1]} 38... Rxd1 {[%clk 0:00:58]} 39. Kxd1
{[%clk 0:00:26]} 39... Kg6 {[%clk 0:00:57.5]} 40. Ke2 {[%clk 0:00:25.6]} 40...
Kf7 {[%clk 0:00:57.6]} 41. Ne1 {[%clk 0:00:24.8]} 41... h5 {[%clk 0:00:55.2]}
42. f3 {[%clk 0:00:24.9]} 42... Nh6 {[%clk 0:00:55.3]} 43. Bf2 {[%clk
0:00:24.1]} 43... Ke6 {[%clk 0:00:55.3]} 44. Nd3 {[%clk 0:00:24.3]} 44... Nf7
{[%clk 0:00:54.9]} 45. Nd2 {[%clk 0:00:24.8]} 45... Nd6 {[%clk 0:00:51.9]} 46.
Nb2 {[%clk 0:00:25.4]} 46... Ng6 {[%clk 0:00:49.5]} 47. Nbc4 {[%clk 0:00:25.4]}
47... Nxc4 {[%clk 0:00:49]} 48. Nxc4 {[%clk 0:00:26.3]} 48... Be7 {[%clk
0:00:48.9]} 49. Na3 {[%clk 0:00:26.3]} 49... Kd7 {[%clk 0:00:45]} 50. Kd3 {[%clk
0:00:24.2]} 50... Kc6 {[%clk 0:00:43.8]} 51. Nc4 {[%clk 0:00:23.2]} 51... b5
{[%clk 0:00:41.2]} 52. Na5+ {[%clk 0:00:22.3]} 52... Kd7 {[%clk 0:00:41.4]} 53.
Nb3 {[%clk 0:00:23.2]} 53... c6 {[%clk 0:00:38.6]} 54. Na5 {[%clk 0:00:21.1]}
54... Bd8 {[%clk 0:00:37.6]} 55. Nb3 {[%clk 0:00:21.4]} 55... Be7 {[%clk
0:00:35.4]} 56. Kc2 {[%clk 0:00:20.4]} 56... Bh4 {[%clk 0:00:34.1]} 57. Bg1
{[%clk 0:00:19.3]} 57... Be7 {[%clk 0:00:33.4]} 58. Bf2 {[%clk 0:00:19.5]} 58...
Ke6 {[%clk 0:00:32]} 59. Kd3 {[%clk 0:00:19.3]} 59... Kf6 {[%clk 0:00:31]} 60.
Ke2 {[%clk 0:00:19.6]} 60... Kg5 {[%clk 0:00:30.8]} 61. Na5 {[%clk 0:00:19.9]}
61... c5 {[%clk 0:00:23.5]} 62. Bxc5 {[%clk 0:00:18.3]} 62... Bxc5 {[%clk
0:00:21.5]} 63. bxc5 {[%clk 0:00:19.2]} 63... Ne7 {[%clk 0:00:20.9]} 64. Nb7
{[%clk 0:00:13.6]} 64... Nc6 {[%clk 0:00:18.3]} 65. Nd6 {[%clk 0:00:13.3]} 65...
b4 {[%clk 0:00:18]} 66. cxb4 {[%clk 0:00:11.8]} 66... Nxb4 {[%clk 0:00:18.2]}
67. Nc4 {[%clk 0:00:10.4]} 67... Kf6 {[%clk 0:00:17.2]} 68. Na5 {[%clk
0:00:08.4]} 68... Ke6 {[%clk 0:00:16.2]} 69. Kf2 {[%clk 0:00:08.7]} 69... Na6
{[%clk 0:00:15]} 70. c6 {[%clk 0:00:08.2]} 70... Kd6 {[%clk 0:00:15.1]} 71. Kg1
{[%clk 0:00:08]} 71... Nb4 {[%clk 0:00:15.1]} 72. Kh2 {[%clk 0:00:07.2]} 72...
Nd3 {[%clk 0:00:14.3]} 73. Kh3 {[%clk 0:00:06]} 73... Ne1 {[%clk 0:00:14.3]} 74.
Nc4+ {[%clk 0:00:05.1]} 74... Kxc6 {[%clk 0:00:10.8]} 75. Nxe5+ {[%clk
0:00:05.2]} 75... Kc5 {[%clk 0:00:10]} 76. Ng6 {[%clk 0:00:05.8]} 76... Nd3
{[%clk 0:00:09.5]} 77. Kh4 {[%clk 0:00:04.9]} 77... Kd4 {[%clk 0:00:09.4]} 78.
Kxh5 {[%clk 0:00:05]} 78... Ne1 {[%clk 0:00:09.6]} 79. Nxf4 {[%clk 0:00:03.7]}
79... Ke3 {[%clk 0:00:09.9]} 80. Kg4 {[%clk 0:00:04.1]} 80... Nc2 {[%clk
0:00:08.1]} 81. e5 {[%clk 0:00:04.1]} 81... Nd4 {[%clk 0:00:07.3]} 82. e6 {[%clk
0:00:04.3]} 82... Nc6 {[%clk 0:00:07.1]} 83. Ng6 {[%clk 0:00:03.3]} 1-0

[Event "Early-Titled-Tuesday-Blitz-October-17-2023"]
[Site "Chess.com"]
[Date "2023.10.17"]
[Round "11"]
[White "santosalberto1987"]
[Black "Dewarfd"]
[Result "1/2-1/2"]
[WhiteElo "2411"]
[BlackElo "2215"]
[TimeControl "180+1"]
[EndTime "10:11:54 PDT"]
[Termination "Game drawn by repetition"]

1. e4 {[%clk 0:03:00]} 1... e5 {[%clk 0:03:00]} 2. Nf3 {[%clk 0:03:00.1]} 2...
Nc6 {[%clk 0:03:00.5]} 3. Bc4 {[%clk 0:03:00.4]} 3... Nf6 {[%clk 0:03:00.5]} 4.
d3 {[%clk 0:03:00]} 4... Be7 {[%clk 0:03:01.2]} 5. O-O {[%clk 0:02:59.7]} 5...
d6 {[%clk 0:03:01.7]} 6. c3 {[%clk 0:02:58.8]} 6... O-O {[%clk 0:03:02.2]} 7.
Bb3 {[%clk 0:02:58.8]} 7... Na5 {[%clk 0:03:02.3]} 8. Bc2 {[%clk 0:02:58.7]}
8... c5 {[%clk 0:03:03.2]} 9. Nbd2 {[%clk 0:02:58.5]} 9... Be6 {[%clk
0:03:01.2]} 10. Re1 {[%clk 0:02:58.2]} 10... Nc6 {[%clk 0:03:01]} 11. Nf1 {[%clk
0:02:58.3]} 11... b5 {[%clk 0:03:00.5]} 12. h3 {[%clk 0:02:56.9]} 12... a5
{[%clk 0:03:00.5]} 13. d4 {[%clk 0:02:54.7]} 13... cxd4 {[%clk 0:03:00.6]} 14.
cxd4 {[%clk 0:02:55.6]} 14... exd4 {[%clk 0:02:57.7]} 15. Nxd4 {[%clk
0:02:55.7]} 15... Nxd4 {[%clk 0:02:57.4]} 16. Qxd4 {[%clk 0:02:56.6]} 16... Nd7
{[%clk 0:02:53.6]} 17. Bf4 {[%clk 0:02:53.3]} 17... Ne5 {[%clk 0:02:51.8]} 18.
Ne3 {[%clk 0:02:45.1]} 18... Ng6 {[%clk 0:02:40.9]} 19. Bg3 {[%clk 0:02:42.6]}
19... Bf6 {[%clk 0:02:36]} 20. Qxd6 {[%clk 0:02:41.7]} 20... Bxb2 {[%clk
0:02:36]} 21. Rab1 {[%clk 0:02:40.6]} 21... Bc3 {[%clk 0:02:31.7]} 22. Red1
{[%clk 0:02:40.4]} 22... b4 {[%clk 0:02:23]} 23. Bb3 {[%clk 0:02:38.6]} 23...
Bxb3 {[%clk 0:02:15.2]} 24. axb3 {[%clk 0:02:38.4]} 24... Qxd6 {[%clk
0:02:07.3]} 25. Bxd6 {[%clk 0:02:38]} 25... Rfd8 {[%clk 0:02:07.2]} 26. f4
{[%clk 0:02:32.6]} 26... a4 {[%clk 0:01:55.9]} 27. bxa4 {[%clk 0:02:31.6]} 27...
Rxa4 {[%clk 0:01:54.5]} 28. f5 {[%clk 0:02:13.4]} 28... Nf8 {[%clk 0:01:41.4]}
29. Bc5 {[%clk 0:02:08.4]} 29... Raa8 {[%clk 0:01:33.1]} 30. Rxd8 {[%clk
0:02:01.4]} 30... Rxd8 {[%clk 0:01:34]} 31. Nd5 {[%clk 0:02:01.9]} 31... Nd7
{[%clk 0:01:05.6]} 32. Bxb4 {[%clk 0:01:48.4]} 32... Bxb4 {[%clk 0:01:04.9]} 33.
Rxb4 {[%clk 0:01:48]} 33... h5 {[%clk 0:01:04.8]} 34. Rb5 {[%clk 0:01:44]} 34...
Re8 {[%clk 0:00:59.6]} 35. Rb4 {[%clk 0:01:41.9]} 35... Nc5 {[%clk 0:00:57.5]}
36. Nc3 {[%clk 0:01:41.9]} 36... f6 {[%clk 0:00:52.7]} 37. Rc4 {[%clk 0:01:41]}
37... Nd3 {[%clk 0:00:51.8]} 38. Rd4 {[%clk 0:01:40.2]} 38... Nf4 {[%clk
0:00:50.6]} 39. Kh2 {[%clk 0:01:35.6]} 39... h4 {[%clk 0:00:49.4]} 40. Nd5
{[%clk 0:01:34.7]} 40... Ne2 {[%clk 0:00:43.1]} 41. Rd2 {[%clk 0:01:33.9]} 41...
Rxe4 {[%clk 0:00:41.6]} 42. Nc7 {[%clk 0:01:28.1]} 42... Ng3 {[%clk 0:00:37.3]}
43. Rd1 {[%clk 0:01:22.3]} 43... Nxf5 {[%clk 0:00:33.5]} 44. Nd5 {[%clk
0:01:21.8]} 44... Ng3 {[%clk 0:00:30.4]} 45. Nc3 {[%clk 0:01:20.3]} 45... Re3
{[%clk 0:00:26]} 46. Nd5 {[%clk 0:01:20.6]} 46... Re2 {[%clk 0:00:25.6]} 47. Nf4
{[%clk 0:01:20.8]} 47... Ra2 {[%clk 0:00:24.8]} 48. Ng6 {[%clk 0:01:20.4]} 48...
Ra4 {[%clk 0:00:21.8]} 49. Nxh4 {[%clk 0:01:20.1]} 49... Rxh4 {[%clk 0:00:21.7]}
50. Kxg3 {[%clk 0:01:20.3]} 50... Rh6 {[%clk 0:00:21.4]} 51. Rd7 {[%clk
0:01:19.8]} 51... Rg6+ {[%clk 0:00:22.3]} 52. Kf3 {[%clk 0:01:20.1]} 52... Kh7
{[%clk 0:00:22.7]} 53. h4 {[%clk 0:01:19.9]} 53... Rh6 {[%clk 0:00:21.3]} 54. g3
{[%clk 0:01:19.4]} 54... Kg6 {[%clk 0:00:21.9]} 55. Rd8 {[%clk 0:01:18.1]} 55...
Rh5 {[%clk 0:00:21.6]} 56. Kf4 {[%clk 0:01:15]} 56... Rf5+ {[%clk 0:00:20.7]}
57. Kg4 {[%clk 0:01:15]} 57... Ra5 {[%clk 0:00:20.8]} 58. Rd4 {[%clk 0:01:14.5]}
58... Kh6 {[%clk 0:00:18.9]} 59. Rb4 {[%clk 0:01:12.7]} 59... Ra3 {[%clk
0:00:17]} 60. Rb5 {[%clk 0:01:09]} 60... Ra4+ {[%clk 0:00:17]} 61. Kf5 {[%clk
0:01:05.5]} 61... Ra3 {[%clk 0:00:14.9]} 62. g4 {[%clk 0:01:01.6]} 62... Rf3+
{[%clk 0:00:15.2]} 63. Ke6 {[%clk 0:01:01.6]} 63... Rf4 {[%clk 0:00:12.9]} 64.
g5+ {[%clk 0:00:22.9]} 64... fxg5 {[%clk 0:00:13.3]} 65. hxg5+ {[%clk
0:00:23.6]} 65... Kg6 {[%clk 0:00:13.3]} 66. Ke7 {[%clk 0:00:20.8]} 66... Rf5
{[%clk 0:00:13]} 67. Rb1 {[%clk 0:00:19.7]} 67... Rxg5 {[%clk 0:00:12.9]} 68.
Ke6 {[%clk 0:00:19.7]} 68... Rg2 {[%clk 0:00:13.1]} 69. Ke5 {[%clk 0:00:19.8]}
69... Kg5 {[%clk 0:00:11.8]} 70. Ke4 {[%clk 0:00:20.1]} 70... Kg4 {[%clk
0:00:11.9]} 71. Ke3 {[%clk 0:00:20.5]} 71... g5 {[%clk 0:00:12.3]} 72. Rb8
{[%clk 0:00:18.5]} 72... Kg3 {[%clk 0:00:12.3]} 73. Rg8 {[%clk 0:00:18.3]} 73...
g4 {[%clk 0:00:12.2]} 74. Rg7 {[%clk 0:00:18.5]} 74... Rg1 {[%clk 0:00:12.6]}
75. Ke2 {[%clk 0:00:18.5]} 75... Kh3 {[%clk 0:00:12]} 76. Kf2 {[%clk 0:00:18.3]}
76... Rg2+ {[%clk 0:00:07.7]} 77. Kf1 {[%clk 0:00:18.6]} 77... Kg3 {[%clk
0:00:07.8]} 78. Ra7 {[%clk 0:00:18.1]} 78... Rb2 {[%clk 0:00:06.9]} 79. Ra3+
{[%clk 0:00:17.5]} 79... Kh4 {[%clk 0:00:06.9]} 80. Kg1 {[%clk 0:00:17.7]} 80...
g3 {[%clk 0:00:06.4]} 81. Ra8 {[%clk 0:00:17.9]} 81... Rb1+ {[%clk 0:00:06.6]}
82. Kg2 {[%clk 0:00:17.7]} 82... Rb2+ {[%clk 0:00:07.5]} 83. Kg1 {[%clk
0:00:18.1]} 83... Rb1+ {[%clk 0:00:08.4]} 84. Kg2 {[%clk 0:00:18.5]} 84... Rb2+
{[%clk 0:00:09.2]} 85. Kg1 {[%clk 0:00:18.9]} 1/2-1/2